bitfinex/quotes_SOLUSD_20260109
["timestamp","ask_amount","ask_price","bid_price","bid_amount"]
[1767973308543,0.28432314,139.31,139.28,0.2]
[1767973308733,7.35028917,139.31,139.27,13.08]
[1767973308928,0.28432314,139.31,139.27,13.08]
[1767973309131,0.28432314,139.31,139.22,0.4351601]
[1767973309132,5.06860461,139.28,139.22,0.4351601]
[1767973309341,7.17729769,139.33,139.13,3.74095444]
[1767973309342,0.28432314,139.22,139.14,0.67145112]
[1767973309541,2.065,139.23,139.14,7.18661447]
[1767973309740,7.06596603,139.19,139.08,14.6498942]
[1767973309936,7.35028917,139.18,139.13,7.06596603]
[1767973310136,0.28432314,139.21,139.14,13.08]
[1767973310459,7.06596603,139.19,139.15,13.08]
[1767973310630,0.28432314,139.21,139.13,13.08]
[1767973310631,0.28432314,139.17,139.13,13.08]
[1767973311032,7.35028917,139.17,139.13,7.18751175]
[1767973311230,0.67145112,139.2,139.12,13.08]
[1767973311445,7.35028917,139.18,139.09,25.16356315]
[1767973311633,0.67145112,139.2,139.13,7.73741715]
[1767973311835,0.28432314,139.21,139.14,20.83741715]
[1767973312154,7.06596603,139.2,139.15,7.73741715]
[1767973312346,2.065,139.23,139.19,0.67145112]
[1767973312554,2.065,139.23,139.2,13.1]
[1767973312865,2.065,139.23,139.2,13.77145112]
[1767973313219,0.099,139.28,139.21,0.67145112]
[1767973313520,7.06596603,139.26,139.22,7.18287602]
[1767973313736,0.099,139.28,139.22,7.18287602]
[1767973313938,7.06596603,139.28,139.22,14.92029317]
[1767973314139,7.17823558,139.31,139.13,164.0]
[1767973314337,6.6801107,139.17,139.09,7.18958947]
[1767973314543,0.28432314,139.16,139.09,7.18958947]
[1767973314737,7.06596603,139.12,139.09,3.75104902]
[1767973314937,0.70705428,139.15,139.08,21.83995408]
[1767973315139,7.06596603,139.11,139.08,14.6498942]
[1767973315339,0.70705428,139.14,139.08,14.6498942]
[1767973315538,0.99137742,139.14,139.08,21.83999329]
[1767973315733,0.70705428,139.14,139.08,21.83999329]
[1767973315933,7.06596603,139.13,139.09,13.1]
[1767973316131,0.28432314,139.15,139.09,0.67145112]
[1767973316132,7.06596603,139.15,139.09,0.67145112]
[1767973316340,0.70705428,139.23,139.15,0.67145112]
[1767973316538,0.70705428,139.23,139.17,7.06596603]
[1767973316748,7.06596603,139.22,139.16,13.77145112]
[1767973316946,7.06596603,139.21,139.17,13.1]
[1767973317155,7.06596603,139.22,139.17,13.1]
[1767973317353,0.70705428,139.23,139.08,21.83993477]
[1767973317354,0.70705428,139.17,139.08,21.83993477]
[1767973317651,0.70705428,139.12,139.08,14.6498942]
[1767973317825,0.70705428,139.12,139.08,21.8399654]
[1767973318029,0.70705428,139.14,139.08,21.8399654]
[1767973318554,7.06596603,139.13,139.08,21.8399654]
[1767973318754,7.06596603,139.11,139.08,14.6498942]
[1767973318954,0.70705428,139.14,139.08,21.83999054]
[1767973319342,0.28432314,139.15,139.08,29.57740769]
[1767973319534,0.28432314,139.15,139.1,7.1890726]
[1767973319535,0.02850574,139.14,139.1,7.1890726]
[1767973319854,0.02850574,139.14,139.08,14.6498942]
[1767973319855,0.28432314,139.15,139.08,21.83988245]
[1767973320028,0.28432314,139.15,139.08,15.32134532]
[1767973320434,0.28432314,139.15,139.09,7.18949463]
[1767973320630,21.5,139.21,139.11,0.67145112]
[1767973320835,7.18390804,139.2,139.13,7.73741715]
[1767973321134,7.18236012,139.23,139.15,0.67145112]
[1767973321332,7.18236012,139.23,139.18,0.67145112]
[1767973321333,7.06596603,139.23,139.18,0.67145112]
[1767973321535,7.06596603,139.23,139.16,13.1]
[1767973321536,7.06596603,139.2,139.16,0.67145112]
[1767973321736,7.06596603,139.2,139.15,7.18637521]
[1767973321737,7.06596603,139.19,139.15,13.1]
[1767973321956,0.14216157,139.21,139.15,13.1]
[1767973322154,0.14216157,139.21,139.13,0.67145112]
[1767973322353,7.06596603,139.19,139.14,13.1]
[1767973322557,7.06596603,139.18,139.14,13.77145112]
[1767973322863,0.28432314,139.21,139.14,0.67145112]
[1767973323062,7.06596603,139.17,139.14,0.67145112]
[1767973323259,7.06596603,139.18,139.14,0.67145112]
[1767973323560,7.06596603,139.18,139.09,7.88588577]
[1767973323561,7.06596603,139.16,139.09,7.88588577]
[1767973323860,7.06596603,139.16,138.99,36.17168485]
[1767973323861,0.28432314,139.06,138.99,0.2]
[1767973324066,0.28432314,139.06,138.97,3.74640661]
[1767973324067,0.28432314,139.04,138.97,3.74640661]
[1767973324382,7.06596603,138.98,138.94,0.4351601]
[1767973324868,0.28432314,139.0,138.94,1.13190778]
[1767973325074,7.06596603,138.95,138.94,0.4351601]
[1767973325286,7.35028917,139.0,138.94,0.4351601]
[1767973325441,7.35028917,139.0,138.92,13.12]
[1767973325442,7.19631548,138.96,138.92,13.12]
[1767973325649,7.06596603,138.93,138.9,13.12]
[1767973325959,7.06596603,138.91,138.87,1e-08]
[1767973326159,7.06596603,138.91,138.69,0.22406749]
[1767973326160,4.03532314,138.77,138.73,0.69674768]
[1767973326463,4.03532314,138.77,138.69,0.22406749]
[1767973326464,7.06596603,138.76,138.71,0.69674768]
[1767973326664,3.026,138.77,138.72,0.69674768]
[1767973326868,1.576,138.77,138.72,0.69674768]
[1767973327064,2.26169919,138.77,138.71,20.32925676]
[1767973327264,1.576,138.77,138.71,13.12]
[1767973327441,1.576,138.77,138.73,7.06596603]
[1767973327645,1.576,138.77,138.72,13.12]
[1767973327646,7.06596603,138.82,138.75,7.06596603]
[1767973327844,13.88212726,138.85,138.74,25.22704338]
[1767973327845,0.68569919,138.81,138.74,7.20772668]
[1767973328044,0.68569919,138.84,138.74,7.20772668]
[1767973328254,0.68569919,138.84,138.75,13.12]
[1767973328455,7.06596603,138.85,138.74,25.22704338]
[1767973328770,0.68569919,138.9,138.77,0.28432314]
[1767973329075,7.75166522,138.9,138.84,7.06596603]
[1767973329451,7.75166522,138.9,138.84,13.12]
[1767973329653,0.68569919,138.93,138.84,27.3884811]
[1767973329848,0.68569919,138.93,138.85,7.06596603]
[1767973330171,0.68569919,138.93,138.85,20.18596603]
[1767973330471,7.06596603,138.91,138.84,25.2088533]
[1767973330671,0.68569919,138.93,138.87,7.06596603]
[1767973330876,7.06596603,138.94,138.85,0.28432314]
[1767973331168,7.88253258,138.95,138.85,0.28432314]
[1767973331169,7.06596603,138.96,138.85,5.24808414]
[1767973331372,0.68569919,138.98,138.89,7.06596603]
[1767973331555,7.06596603,138.94,138.86,18.00269742]
[1767973331883,0.68569919,138.96,138.88,7.06596603]
[1767973332067,0.68569919,138.96,138.87,20.32049298]
[1767973332068,0.97002233,138.96,138.87,20.32049298]
[1767973332271,7.75166522,138.93,138.82,18.72844924]
[1767973332471,11.32201462,138.92,138.85,7.20196686]
[1767973332670,11.32201462,138.92,138.86,24.44201462]
[1767973332862,0.68569919,138.96,138.88,11.32201462]
[1767973333059,11.32201462,138.95,138.88,7.20015459]
[1767973333366,0.68569919,138.96,138.89,11.32201462]
[1767973333677,7.88204287,138.96,138.89,18.52190104]
[1767973333873,7.88204287,138.96,138.84,0.72025352]
[1767973333874,0.68569919,138.93,138.84,0.72025352]
[1767973334052,0.68569919,138.91,138.84,11.32201462]
[1767973334249,0.68569919,138.88,138.79,18.0117763]
[1767973334469,12.00771381,138.88,138.82,11.32201462]
[1767973334662,0.68569919,138.87,138.84,11.32201462]
[1767973334865,0.68569919,138.9,138.85,24.44201462]
[1767973335063,11.32201462,138.92,138.86,11.32201462]
[1767973335262,0.68569919,138.93,138.85,13.12]
[1767973335457,11.32201462,138.91,138.83,0.28432314]
[1767973335775,31.86724309,138.96,138.87,7.20097933]
[1767973335776,0.68569919,138.96,138.87,7.20097933]
[1767973336077,11.32201462,138.94,138.89,11.32201462]
[1767973336250,12.00771381,138.95,138.89,11.32201462]
[1767973336777,0.68569919,138.98,138.9,11.32201462]
[1767973337076,0.68569919,138.98,138.89,0.28432314]
[1767973337077,11.32201462,138.98,138.89,0.28432314]
[1767973337258,0.68569919,139.0,138.94,11.32201462]
[1767973337458,11.32201462,139.01,138.94,13.14]
[1767973337763,0.68569919,138.99,138.95,13.14]
[1767973338077,11.32201462,138.99,138.94,13.14]
[1767973338263,12.00771381,138.99,138.94,13.14]
[1767973338575,0.68569919,138.98,138.94,31.65923101]
[1767973338774,0.68569919,138.98,138.94,20.33721639]
[1767973338982,0.68569919,138.98,138.94,24.46201462]
[1767973339179,0.68569919,138.98,138.94,13.14]
[1767973339406,0.68569919,138.98,138.94,24.46201462]
[1767973339586,0.68569919,138.98,138.95,11.32201462]
[1767973339780,19.20097818,139.02,138.96,11.32201462]
[1767973339960,0.68569919,139.04,138.98,11.32201462]
[1767973340160,0.68569919,139.04,138.99,24.46201462]
[1767973340383,7.8768397,139.06,138.99,24.46201462]
[1767973340570,11.32201462,139.05,138.99,24.46201462]
[1767973340775,11.32201462,139.04,138.99,13.14]
[1767973340960,0.68569919,139.05,138.99,24.46201462]
[1767973341162,0.68569919,139.05,138.95,25.33107798]
[1767973341377,0.68569919,139.05,138.96,24.46201462]
[1767973341584,11.32201462,139.02,138.96,24.46201462]
[1767973341895,0.68569919,138.98,138.87,182.00145003]
[1767973342061,0.68569919,138.98,138.92,11.32201462]
[1767973342274,0.68569919,138.98,138.93,24.46201462]
[1767973342481,0.68569919,139.01,138.97,11.32201462]
[1767973342678,0.68569919,139.01,138.98,13.14]
[1767973342991,0.68569919,139.0,138.95,18.51873618]
[1767973343188,12.00771381,139.0,138.96,20.33631267]
[1767973343388,0.68569919,138.99,138.94,7.19688854]
[1767973343590,11.32201462,139.01,138.95,31.65874329]
[1767973343889,11.32201462,139.0,138.95,20.33672867]
[1767973344400,11.32201462,138.98,138.95,13.14]
[1767973344574,11.32201462,138.99,138.95,13.14]
[1767973344978,11.32201462,138.99,138.93,7.19786866]
[1767973345178,11.32201462,138.98,138.96,13.14]
[1767973345375,0.68569919,138.96,138.89,18.71984118]
[1767973345682,11.32201462,138.94,138.9,20.33899489]
[1767973345883,11.32201462,138.95,138.91,13.14]
[1767973346283,0.68569919,138.96,138.91,20.3387303]
[1767973346486,11.32201462,138.95,138.91,13.14]
[1767973346686,0.68569919,138.94,138.91,13.14]
[1767973346992,12.00771381,138.94,138.9,7.19929594]
[1767973347286,11.32201462,138.95,138.91,20.33889148]
[1767973347492,11.32201462,138.95,138.92,13.14]
[1767973347681,0.68569919,139.0,138.92,13.14]
[1767973347888,11.32201462,138.97,138.92,13.14]
[1767973348283,11.32201462,138.97,138.93,13.14]
[1767973348491,17.98451773,139.01,138.93,13.14]
[1767973348492,0.68569919,138.98,138.93,13.14]
[1767973348680,0.68569919,138.98,138.93,24.46201462]
[1767973348865,0.68569919,139.0,138.94,11.32201462]
[1767973349071,0.68569919,139.02,138.96,11.32201462]
[1767973349301,0.68569919,138.99,138.89,164.71999424]
[1767973349588,0.68569919,138.99,138.91,36.51781229]
[1767973349589,11.32201462,138.97,138.91,36.51781229]
[1767973349774,11.32201462,138.97,138.91,7.19853326]
[1767973349983,11.32201462,138.97,138.92,13.14]
[1767973350291,11.32201462,138.97,138.92,20.33791543]
[1767973350489,11.32201462,138.96,138.92,20.33824191]
[1767973350889,7.8804614,138.99,138.92,7.19824191]
[1767973351089,25.86736693,138.99,138.89,17.99941178]
[1767973351285,11.32201462,138.95,138.9,20.33928827]
[1767973351793,7.19476221,138.99,138.92,7.89499745]
[1767973351992,11.32201462,138.98,138.92,7.89499745]
[1767973352204,11.32201462,138.97,138.92,7.89499745]
[1767973352380,11.32201462,138.98,138.93,0.69674768]
[1767973352697,7.19480576,138.99,138.94,13.14]
[1767973353198,11.32201462,138.96,138.93,0.69674768]
[1767973353396,11.32201462,138.97,138.94,13.14]
[1767973353594,25.18171129,138.99,138.93,0.69674768]
[1767973353595,7.19480576,138.99,138.93,0.69674768]
[1767973353785,11.32201462,138.97,138.93,13.14]
[1767973354198,11.32201462,138.97,138.92,0.70277408]
[1767973354420,7.19421226,139.01,138.95,0.70277408]
[1767973354583,7.10908652,139.0,138.96,0.70277408]
[1767973354899,7.10908652,138.99,138.96,0.70277408]
[1767973355100,7.10908652,138.97,138.94,13.14]
[1767973355408,0.65828221,138.99,138.92,7.19838164]
[1767973355706,7.10908652,138.96,138.93,13.14]
[1767973356004,7.10908652,138.94,138.91,13.14]
[1767973356177,7.10908652,138.95,138.91,13.14]
[1767973356499,7.19597535,138.97,138.91,20.33882744]
[1767973356674,18.27133352,138.99,138.91,20.33882744]
[1767973356675,7.10908652,138.96,138.91,20.33882744]
[1767973356874,0.71751534,138.99,138.91,20.33882744]
[1767973357077,7.10908652,138.98,138.91,45.44517837]
[1767973358302,7.10908652,138.98,138.96,13.14]
[1767973358602,7.10908652,138.99,138.96,13.14]
[1767973358798,7.10908652,138.99,138.95,7.19678274]
[1767973358799,7.10908652,138.98,138.95,13.14]
[1767973358975,7.82660186,138.98,138.95,13.14]
[1767973359177,7.10908652,138.98,138.95,13.14]
[1767973359694,7.10908652,138.98,138.94,20.33721572]
[1767973360099,7.10908652,138.99,138.95,7.19679364]
[1767973360398,7.10908652,138.99,138.94,20.33716515]
[1767973360596,14.3039388,138.99,138.93,7.19786943]
[1767973360794,14.3039388,138.99,138.92,25.80671755]
[1767973360795,7.10908652,138.97,138.92,7.90098838]
[1767973360994,7.10908652,138.95,138.92,7.1982143]
[1767973361180,7.10908652,138.94,138.88,18.70339867]
[1767973361381,7.10908652,138.91,138.87,7.20078865]
[1767973361582,7.10908652,138.9,138.86,7.20131785]
[1767973361999,0.71692301,138.96,138.86,13.14]
[1767973362303,7.10908652,138.92,138.88,7.20009681]
[1767973362501,0.71692301,138.96,138.89,7.90259306]
[1767973362800,0.71692301,138.96,138.9,0.70277408]
[1767973362977,0.71692301,138.96,138.91,0.70277408]
[1767973363184,7.10908652,138.96,138.91,13.84277408]
[1767973363400,7.10908652,138.94,138.91,13.84277408]
[1767973363703,7.10908652,138.93,138.89,7.90259306]
[1767973363878,0.65828221,138.96,138.9,0.70277408]
[1767973364079,7.912898,138.99,138.91,0.70277408]
[1767973364281,7.10908652,138.97,138.91,0.70277408]
[1767973364497,11.55534994,138.98,138.92,0.70277408]
[1767973364801,0.71811969,138.99,138.93,7.90064351]
[1767973364983,11.55534994,138.99,138.93,19.45599345]
[1767973365301,11.55534994,138.99,138.93,7.90064351]
[1767973365706,18.74959454,139.0,138.93,19.45599345]
[1767973366088,7.1942446,139.0,138.93,37.45066702]
[1767973366290,11.55534994,138.99,138.93,37.45066702]
[1767973366607,11.55534994,139.02,138.95,0.70277408]
[1767973366905,11.55534994,139.02,138.96,0.70277408]
[1767973367109,11.55534994,139.01,138.96,0.70277408]
[1767973367408,11.55534994,139.02,138.96,12.25812402]
[1767973367609,57.65375932,139.07,138.99,0.70277408]
[1767973367610,7.19127446,139.06,138.99,0.70277408]
[1767973367908,7.19127446,139.06,139.0,12.25812402]
[1767973368116,7.19127446,139.06,139.01,7.19372706]
[1767973368117,18.7466244,139.06,139.01,7.19372706]
[1767973368312,0.2,139.07,139.01,37.43616875]
[1767973368613,0.71751534,139.06,139.0,7.1940783]
[1767973368909,0.71751534,139.06,138.99,7.89717194]
[1767973369099,11.55534994,139.04,139.0,7.19404727]
[1767973369430,0.71751534,139.06,138.99,7.89735153]
[1767973369607,1.00183848,139.06,138.99,21.03746532]
[1767973369810,7.39088609,139.07,139.0,7.89017734]
[1767973369990,11.55534994,139.05,139.0,0.69620832]
[1767973370191,18.74747433,139.05,139.0,0.69620832]
[1767973370505,11.55534994,139.04,139.0,0.63620833]
[1767973370707,11.55534994,139.04,139.0,0.57620835]
[1767973370899,18.74747433,139.05,139.0,0.51620843]
[1767973371290,18.74747433,139.05,139.0,0.45620846]
[1767973371610,11.55534994,139.01,138.96,7.19629265]
[1767973371809,11.55534994,139.01,138.95,20.33665988]
[1767973372113,18.74926546,139.01,138.94,11.55534994]
[1767973372309,18.74926546,139.01,138.95,13.14]
[1767973372610,0.66616843,139.03,138.97,11.55534994]
[1767973372809,18.74767793,139.04,138.97,11.55534994]
[1767973373107,0.66616843,139.05,138.99,11.55534994]
[1767973373108,18.74702401,139.05,138.99,11.55534994]
[1767973373288,18.74702401,139.05,138.99,12.25155826]
[1767973373289,5.3492495,139.04,138.99,12.25155826]
[1767973373495,18.74711862,139.05,138.99,12.25155826]
[1767973373695,5.35640586,139.04,138.99,0.69620832]
[1767973373906,5.35655005,139.03,138.99,0.69620832]
[1767973374099,18.74649045,139.06,139.0,7.89045292]
[1767973374291,16.91171312,139.05,139.0,0.69620832]
[1767973374493,16.91171312,139.04,139.0,0.69620832]
[1767973374806,5.35856571,139.03,139.0,0.69620832]
[1767973375005,11.55534994,139.05,139.0,0.69620832]
[1767973375206,5.35856183,139.04,139.0,0.69620832]
[1767973375413,5.3589469,139.03,139.0,0.69620832]
[1767973375611,5.3589469,139.03,138.99,18.75006432]
[1767973375612,0.2,139.07,139.01,0.69620832]
[1767973375809,5.3587119,139.06,139.03,0.69620832]
[1767973376018,0.2,139.07,139.03,0.69620832]
[1767973376219,5.35819807,139.06,139.03,0.63620834]
[1767973376410,7.39077373,139.07,139.03,0.63620834]
[1767973376616,6.02298459,139.06,139.02,20.33289897]
[1767973376814,7.39077373,139.07,139.02,20.33289897]
[1767973376815,7.39077373,139.07,139.02,31.88824891]
[1767973377111,5.35681925,139.06,139.02,31.88824891]
[1767973377313,0.86616843,139.07,139.03,7.1926905]
[1767973377512,5.35603435,139.06,139.02,31.88839537]
[1767973377695,0.2,139.07,139.03,7.19264652]
[1767973377895,11.55534994,139.2,139.06,11.55534994]
[1767973377896,0.66616843,139.12,139.06,11.55534994]
[1767973378111,0.66616843,139.12,139.06,13.14]
[1767973378112,18.74359454,139.12,139.06,13.14]
[1767973378297,18.74359454,139.12,139.02,0.28432314]
[1767973378298,11.55534994,139.1,139.04,0.69620832]
[1767973378515,11.55534994,139.1,139.04,20.96819525]
[1767973378819,12.22151837,139.11,139.05,7.13149792]
[1767973379023,12.22151837,139.11,139.04,13.77620841]
[1767973379024,12.22151837,139.1,139.04,20.96823195]
[1767973379216,12.22151837,139.1,139.04,13.75620841]
[1767973379217,11.55534994,139.09,139.04,13.75620841]
[1767973379399,12.22151837,139.08,139.03,13.12]
[1767973380220,12.22151837,139.08,139.01,7.19361558]
[1767973380221,18.74597336,139.07,139.01,7.19361558]
[1767973380418,18.74597336,139.07,139.02,20.31304075]
[1767973380801,7.19062342,139.07,139.03,11.55534994]
[1767973381027,11.55534994,139.09,139.03,19.44421103]
[1767973381212,0.14216157,139.1,139.03,19.44421103]
[1767973381213,7.85524103,139.1,139.03,19.44421103]
[1767973381418,11.55534994,139.09,139.03,7.88886109]
[1767973381723,7.18867179,139.11,139.05,0.69620832]
[1767973382025,12.22151837,139.12,139.06,25.37155826]
[1767973382223,0.2,139.13,139.08,0.69620832]
[1767973382521,0.2,139.13,139.08,12.25155826]
[1767973383025,0.2,139.13,139.09,11.55534994]
[1767973383220,0.2,139.13,139.08,0.69620832]
[1767973383408,11.75534994,139.13,139.08,0.69620832]
[1767973383606,0.2,139.13,139.08,12.25155826]
[1767973383822,7.38757282,139.13,139.08,12.25155826]
[1767973384022,12.23678795,139.09,139.03,13.79678733]
[1767973384319,0.68143801,139.07,139.03,20.31247941]
[1767973384519,0.88143801,139.13,139.04,0.67678733]
[1767973384710,0.88143801,139.13,139.04,0.96111047]
[1767973384711,0.68143801,139.12,139.04,0.96111047]
[1767973385119,0.68143801,139.12,139.07,11.55534994]
[1767973385304,12.23678795,139.12,139.06,13.12]
[1767973385505,0.68143801,139.1,139.04,11.55534994]
[1767973385700,0.68143801,139.1,139.03,20.98926674]
[1767973385701,11.55534994,139.09,139.03,20.98926674]
[1767973386008,11.55534994,139.09,139.04,13.12]
[1767973386202,11.55534994,139.08,139.04,13.12]
[1767973386403,0.68143801,139.07,139.03,13.12]
[1767973386705,0.68143801,139.07,139.03,20.31257846]
[1767973386903,11.55534994,139.08,139.03,20.31257846]
[1767973387104,11.55534994,139.08,138.97,0.67678733]
[1767973387105,12.23678795,139.04,138.97,0.67678733]
[1767973387407,11.55534994,139.03,138.97,25.35213727]
[1767973387612,12.23678795,139.04,138.97,32.54778947]
[1767973387821,0.68143801,139.04,138.97,32.54778947]
[1767973387998,12.23678795,139.04,138.97,38.98193366]
[1767973388202,11.55534994,139.03,138.98,0.67678733]
[1767973388404,11.55534994,139.03,138.98,7.87190776]
[1767973389429,12.23678795,139.04,138.98,19.4272577]
[1767973389630,12.23678795,139.04,138.98,7.87190776]
[1767973389818,11.55534994,139.03,138.98,7.87190776]
[1767973390013,11.55534994,139.03,138.97,42.66403904]
[1767973390014,11.55534994,139.03,138.97,13.12]
[1767973390211,11.55534994,139.02,138.96,20.31593363]
[1767973390522,0.68143801,139.01,138.97,7.19572233]
[1767973390730,0.68143801,139.01,138.96,24.67534994]
[1767973390927,0.68143801,139.04,138.98,18.7506001]
[1767973391224,7.19166899,139.05,138.98,18.7506001]
[1767973391225,0.68143801,139.05,138.99,11.55534994]
[1767973391426,0.68143801,139.05,139.01,7.19372706]
[1767973391725,11.55534994,139.04,138.99,20.99152046]
[1767973391919,0.68143801,139.05,139.0,7.19422106]
[1767973392120,7.87219675,139.07,139.0,19.42635833]
[1767973392315,11.55534994,139.06,139.0,19.42635833]
[1767973392720,12.23678795,139.05,139.0,7.19422106]
[1767973392912,0.68143801,139.05,139.0,7.19422106]
[1767973393222,11.55534994,139.04,138.99,7.19456934]
[1767973393431,11.55534994,139.03,138.98,13.12]
[1767973394221,0.68143801,139.06,139.0,12.23213727]
[1767973394403,12.23678795,139.06,139.0,12.23213727]
[1767973394610,11.55534994,139.07,139.01,12.23213727]
[1767973394831,0.68143801,139.08,139.02,12.23213727]
[1767973395041,12.23678795,139.08,139.02,0.67678733]
[1767973395237,7.18974845,139.09,139.02,0.67678733]
[1767973395539,7.18974845,139.09,139.0,13.12]
[1767973395540,12.23678795,139.12,139.06,18.74649045]
[1767973395830,1e-08,139.13,139.12,0.67678733]
[1767973396029,11.55534994,139.2,139.13,0.67678733]
[1767973396230,8.06529648,139.21,139.15,11.55534994]
[1767973396410,12.43678795,139.21,139.15,11.55534994]
[1767973396731,19.6203471,139.21,139.15,11.55534994]
[1767973396908,12.23678795,139.2,139.12,6.6801107]
[1767973397110,12.23678795,139.17,139.11,13.12]
[1767973397307,12.23678795,139.17,139.11,11.55534994]
[1767973397308,0.68143801,139.16,139.11,11.55534994]
[1767973397633,0.68143801,139.16,139.08,18.65192112]
[1767973397634,12.23678795,139.15,139.08,18.65192112]
[1767973397931,12.23678795,139.15,139.09,7.18942562]
[1767973397932,0.68143801,139.14,139.09,7.18942562]
[1767973398136,0.68143801,139.14,139.05,0.28432314]
[1767973398137,11.55534994,139.1,139.05,7.19152339]
[1767973398434,12.23678795,139.11,139.05,18.74687333]
[1767973398805,0.68143801,139.12,139.05,18.74687333]
[1767973399121,19.42561879,139.11,139.05,18.74687333]
[1767973399307,12.23678795,139.1,139.03,0.67678733]
[1767973399512,0.68143801,139.11,139.06,11.55534994]
[1767973399722,0.68143801,139.11,139.04,0.67678733]
[1767973399922,0.68143801,139.11,139.06,11.55534994]
[1767973400126,0.68143801,139.11,139.04,13.79678733]
[1767973400524,12.23678795,139.1,139.02,18.65946671]
[1767973400731,0.68143801,139.1,139.03,0.67678733]
[1767973400939,0.68143801,139.08,139.03,18.74787333]
[1767973401112,0.68143801,139.1,139.01,13.79678733]
[1767973401312,13.12,139.12,139.07,11.55534994]
[1767973401313,20.98964753,139.12,139.07,11.55534994]
[1767973401632,20.98964753,139.12,139.08,11.55534994]
[1767973401633,13.12,139.12,139.08,11.55534994]
[1767973401813,12.37894952,139.14,139.08,11.55534994]
[1767973402013,7.86742223,139.16,139.11,11.55534994]
[1767973402236,19.42277217,139.16,139.1,11.55534994]
[1767973402615,11.55534994,139.15,139.09,31.86465263]
[1767973402832,7.86742223,139.16,139.11,11.55534994]
[1767973403048,11.55534994,139.17,139.11,11.55534994]
[1767973403292,0.68143801,139.18,139.11,12.23213727]
[1767973403451,0.68143801,139.18,139.12,11.55534994]
[1767973403654,7.18457887,139.19,139.14,11.55534994]
[1767973404047,8.06495731,139.21,139.16,11.55534994]
[1767973404248,19.62030725,139.21,139.14,0.67678733]
[1767973404476,12.23678795,139.2,139.14,0.67678733]
[1767973404775,7.3835193,139.21,139.17,11.55534994]
[1767973404776,0.2,139.21,139.17,11.55534994]
[1767973404964,0.68143801,139.25,139.2,11.55534994]
[1767973405171,0.68143801,139.24,139.18,0.67678733]
[1767973405475,32.62147853,139.27,139.18,0.67678733]
[1767973405476,18.736277,139.26,139.2,11.55534994]
[1767973405772,33.30291654,139.27,139.22,11.55534994]
[1767973405773,14.67030407,139.27,139.22,11.55534994]
[1767973406068,22.53212643,139.27,139.21,0.67678733]
[1767973406274,22.53212643,139.27,139.22,11.55534994]
[1767973406474,22.53212643,139.27,139.22,11.49535015]
[1767973406882,22.53212643,139.27,139.22,11.37535042]
[1767973407278,14.67030407,139.27,139.26,11.55534994]
[1767973407469,14.67030407,139.27,139.23,0.67678733]
[1767973407664,14.67030407,139.27,139.25,11.55534994]
[1767973408258,15.24407896,139.27,139.23,24.67534994]
[1767973408590,15.24407896,139.27,139.24,11.55534994]
[1767973408963,15.24407896,139.27,139.25,10.86811622]
[1767973409191,15.24407896,139.27,139.24,7.18177638]
[1767973409398,15.24407896,139.27,139.25,11.55534994]
[1767973409558,15.24407896,139.27,139.24,11.55534994]
[1767973409961,15.24407896,139.27,139.18,64.20398484]
[1767973409962,11.55534994,139.26,139.18,6.6801107]
[1767973410257,22.42454348,139.27,139.18,18.74027897]
[1767973410258,11.55534994,139.24,139.18,18.74027897]
[1767973410583,11.55534994,139.23,139.17,0.67678733]
[1767973410888,11.55534994,139.22,139.17,0.67678733]
[1767973411266,0.14216157,139.23,139.16,11.55534994]
[1767973411464,7.86214829,139.24,139.19,12.23213727]
[1767973411792,7.86214829,139.24,139.19,0.67678733]
[1767973411964,19.41749823,139.24,139.19,0.67678733]
[1767973412473,19.41749823,139.24,139.17,25.35213727]
[1767973412474,7.86214829,139.24,139.17,25.35213727]
[1767973412683,7.86214829,139.24,139.19,0.67678733]
[1767973412684,0.680304,139.24,139.19,0.67678733]
[1767973412988,7.86220652,139.24,139.16,0.67677972]
[1767973413294,11.55534994,139.18,139.11,0.67677972]
[1767973413583,0.28432314,139.2,139.12,11.55534994]
[1767973413584,0.70230165,139.19,139.12,11.55534994]
[1767973413886,11.55534994,139.18,139.12,11.55534994]
[1767973414095,0.70230165,139.19,139.12,11.55534994]
[1767973414390,18.74116996,139.17,139.11,7.86524523]
[1767973414553,18.74116996,139.17,139.12,11.55534994]
[1767973415069,18.74116996,139.17,139.11,19.42059517]
[1767973415272,11.55534994,139.16,139.11,12.23212966]
[1767973415697,7.18582002,139.17,139.11,19.42054228]
[1767973415864,18.74116996,139.17,139.11,19.42054228]
[1767973416065,7.18582002,139.17,139.12,11.55534994]
[1767973416588,7.18512278,139.18,139.13,11.55534994]
[1767973416769,18.74047272,139.18,139.12,18.7432616]
[1767973417089,7.18512278,139.18,139.12,7.18791166]
[1767973417297,19.44225093,139.19,139.12,7.18791166]
[1767973417480,11.55534994,139.18,139.13,11.55534994]
[1767973417796,7.88690099,139.19,139.13,11.55534994]
[1767973417966,11.55534994,139.18,139.13,11.55534994]
[1767973418384,18.74047983,139.18,139.13,11.55534994]